{"text_format":"1","workbook":"xlsx","n_sheets":2,"sheets":["Пересчет валют","Курсы пересчета"],"not_rendered":{"charts":0,"images":1,"macros":1,"external_links":0,"defined_names":7,"comments":0,"pivot_tables":0},"unopened":[],"bounds":{"document_bytes":16777216,"sheet_cells":100000,"rows_first":2000,"rows_last":500,"rows_between":2000,"halvings":0,"cell_chars":16384,"cell_head_chars":4096},"cells_cut":0,"cells_raw":0,"read":"whole","date_system":"1900"}

{"sheet":"Пересчет валют","index":0,"n_rows":10,"n_cols":5,"rows_kept":10,"cut":false,"hidden":false,"merged":[]}
[]
[]
[]
[]
[null,null,null,41,6000]
[]
[]
[]
[]
[null,null,null,27,{"$f":"IFERROR(IF(OR(ИсходнаяВалюта=0,КонечнаяВалюта=0),\"\",ИсходнаяСумма/OFFSET(Валюты,ИсходнаяВалюта-1,3,1,1)*OFFSET(Валюты,КонечнаяВалюта-1,3,1,1)),\"\")","v":""}]

{"sheet":"Курсы пересчета","index":1,"n_rows":48,"n_cols":2,"rows_kept":48,"cut":false,"hidden":false,"merged":[]}
["Курсы пересчета"]
["Данные на этом листе получены с помощью веб-запроса MSN Money. Они обновляются при нажатии кнопки «Обновить курсы пересчета» на листе «Пересчет валют»."]
[]
[]
[]
[null,"Название списка"]
[null,{"$f":"IF(ISERROR(FIND(\" to US Dollar\",C7)),C7,LEFT(C7,FIND(\" to US Dollar\",C7)-1))","v":"Argentine Peso"}]
[null,{"$f":"IF(ISERROR(FIND(\" to US Dollar\",C8)),C8,LEFT(C8,FIND(\" to US Dollar\",C8)-1))","v":"Australian Dollar"}]
[null,"Bahraini Dinar"]
[null,"Bolivian Boliviano"]
[null,"Brazilian Real"]
[null,"British Pound"]
[null,"Canadian Dollar"]
[null,"Chile Peso"]
[null,"Chinese Yuan"]
[null,"Colombian Peso"]
[null,"Czech Koruna"]
[null,"Danish Krone"]
[null,"Euro"]
[null,"Egyptian Pound*"]
[null,"Hong Kong Dollar"]
[null,"Hungarian Forint"]
[null,"Indian Rupee"]
[null,"Indonesia Rupiah"]
[null,"Japanese Yen"]
[null,"Jordanian Dinar"]
[null,"Kenyan Shilling"]
[null,"South Korean Won"]
[null,"Kuwaiti Dinar"]
[null,"Morocco Dirham"]
[null,"Malaysian Ringgit"]
[null,"Mexican Peso"]
[null,"Norwegian Krone"]
[null,"Omani Rial"]
[null,"Peruvian New Sol"]
[null,"Philippine Peso"]
[null,"Pakistani Rupee"]
[null,"Saudi Riyal"]
[null,"Singapore Dollar"]
[null,"South African Rand"]
[null,"Swedish Krona"]
[null,"Swiss Franc"]
[null,"Taiwan Dollar"]
[null,"Thai Baht"]
[null,"Tunisian Dinar"]
[null,"Emirati Dirham"]
[null,"United States Dollar"]
[null,"Venezuelan Bolivar"]